fUSD/lending_fUSD_20250828
["ID","MTS","AMOUNT","RATE_DAILY","PERIOD"]
[381834920,1756363856643,-800.0,0.00021565,2]
[381834921,1756363856653,-800.0,0.00021565,2]
[381834922,1756363856665,-800.0,0.00021565,2]
[381834923,1756363856675,-800.0,0.00021565,2]
[381834924,1756363856684,-800.0,0.00021565,2]
[381834925,1756363856694,-800.0,0.00021565,2]
[381834926,1756363856704,-800.0,0.00021565,2]
[381834927,1756363856715,-800.0,0.00021565,2]
[381834928,1756363856727,-800.0,0.00021565,2]
[381834929,1756363856736,-800.0,0.00021565,2]
[381834930,1756363856747,-800.0,0.00021565,2]
[381834931,1756363856757,-800.0,0.00021565,2]
[381834932,1756363856766,-800.0,0.00021565,2]
[381834933,1756363856776,-800.0,0.00021565,2]
[381834934,1756363856785,-800.0,0.00021565,2]
[381834935,1756363856795,-800.0,0.00021565,2]
[381834936,1756363856805,-800.0,0.00021565,2]
[381834937,1756363856815,-800.0,0.00021565,2]
[381834938,1756363856825,-800.0,0.00021565,2]
[381834939,1756363856836,-800.0,0.00021565,2]
[381834940,1756363856846,-800.0,0.00021565,2]
[381834941,1756363856856,-800.0,0.00021565,2]
[381834942,1756363856866,-800.0,0.00021565,2]
[381834943,1756363856876,-800.0,0.00021565,2]
[381834944,1756363856886,-800.0,0.00021565,2]
[381834945,1756363856896,-800.0,0.00021565,2]
[381834946,1756363856906,-800.0,0.00021565,2]
[381834947,1756363856916,-800.0,0.00021565,2]
[381834948,1756363856926,-943.0,0.00021565,2]
[381834949,1756363856936,-800.0,0.00021565,2]
[381834950,1756363856946,-800.0,0.00021565,2]
[381834951,1756363856955,-800.0,0.00021565,2]
[381834952,1756363856965,-800.0,0.00021565,2]
[381834953,1756363856978,-800.0,0.00021565,2]
[381834954,1756363856990,-800.0,0.00021565,2]
[381834955,1756363856999,-800.0,0.00021565,2]
[381834956,1756363857010,-800.0,0.00021565,2]
[381834957,1756363857021,-800.0,0.00021565,2]
[381834958,1756363857031,-800.0,0.00021565,2]
[381834959,1756363857041,-800.0,0.00021565,2]
[381834960,1756363857052,-800.0,0.00021565,2]
[381834961,1756363857062,-800.0,0.00021565,2]
[381834962,1756363857072,-800.0,0.00021565,2]
[381834963,1756363857082,-800.0,0.00021565,2]
[381834964,1756363857092,-800.0,0.00021565,2]
[381834965,1756363857102,-800.0,0.00021565,2]
[381834966,1756363857111,-800.0,0.00021565,2]
[381834967,1756363857122,-800.0,0.00021565,2]
[381834968,1756363857131,-800.0,0.00021565,2]
[381834969,1756363857141,-800.0,0.00021565,2]
[381834970,1756363857152,-200.0,0.00021565,2]
[381834971,1756363857163,-200.0,0.00021565,2]
[381834972,1756363857172,-200.0,0.00021565,2]
[381834973,1756363857182,-200.0,0.00021565,2]
[381834974,1756363857192,-200.0,0.00021565,2]
[381834975,1756363857203,-200.0,0.00021565,2]
[381834976,1756363857213,-200.0,0.00021565,2]
[381834977,1756363857223,-200.0,0.00021565,2]
[381834978,1756363857234,-200.0,0.00021565,2]
[381834979,1756363857244,-200.0,0.00021565,2]
[381834980,1756363857253,-200.0,0.00021565,2]
[381834981,1756363857265,-200.0,0.00021565,2]
[381834982,1756363857275,-200.0,0.00021565,2]
[381834983,1756363857285,-200.0,0.00021565,2]
[381834984,1756363857295,-200.0,0.00021565,2]
[381834985,1756363857304,-200.0,0.00021565,2]
[381834986,1756363857315,-800.0,0.00021565,2]
[381834987,1756363857324,-800.0,0.00021565,2]
[381834988,1756363857334,-200.0,0.00021565,2]
[381834989,1756363857344,-800.0,0.00021565,2]
[381834990,1756363857354,-800.0,0.00021565,2]
[381834991,1756363857364,-800.0,0.00021565,2]
[381834992,1756363857374,-800.0,0.00021565,2]
[381834993,1756363857384,-800.0,0.00021565,2]
[381834994,1756363857394,-800.0,0.00021565,2]
[381834995,1756363857404,-800.0,0.00021565,2]
[381834996,1756363857414,-800.0,0.00021565,2]
[381834997,1756363857423,-600.0,0.00021616,2]
[381834998,1756363857433,-1425.0,0.00021627,2]
[381834999,1756363857443,-151.22805893,0.00021639,2]
[381835000,1756363857453,-259.39862515,0.00021645,2]
[381835001,1756363857463,-1425.0,0.00021658,2]
[381835002,1756363857473,-1425.0,0.00021687,2]
[381835003,1756363857483,-1425.0,0.00021717,2]
[381835004,1756363857493,-1026.39399222,0.00021719,2]
[381835005,1756363857502,-1425.0,0.00021723,2]
[381835006,1756363857513,-338.90799678,0.00021734,2]
[381835007,1756363857525,-400.0,0.00021735,2]
[381835008,1756363857536,-210.0,0.00021744,2]
[381835009,1756363857548,-210.0,0.00021744,2]
[381835010,1756363857559,-210.0,0.00021744,2]
[381835011,1756363857571,-213.0,0.00021744,2]
[381835012,1756363857582,-213.0,0.00021744,2]
[381835013,1756363857592,-213.0,0.00021744,2]
[381835014,1756363857602,-204.0,0.00021744,2]
[381835015,1756363857612,-204.0,0.00021744,2]
[381835016,1756363857622,-204.0,0.00021744,2]
[381835017,1756363857632,-212.0,0.00021744,2]
[381835018,1756363857642,-209.0,0.00021744,2]
[381835019,1756363857652,-527.0,0.00021766,3]
[381835020,1756363857662,-700.0,0.0002177,2]
[381835021,1756363857672,-1425.0,0.00021785,2]
[381835022,1756363857682,-1256.3817406,0.00021789,2]
[381835023,1756363857692,-168.0,0.00021797,2]
[381835024,1756363857702,-1933.27381243,0.000218,7]
[381835025,1756363857712,-168.0,0.00021804,2]
[381835026,1756363857721,-782.21,0.00021804,2]
[381835027,1756363857732,-200.0,0.0002181,7]
[381835028,1756363857741,-1000.0,0.00021829,2]
[381835029,1756363857751,-400.0,0.00021833,2]
[381835030,1756363857761,-1224.72,0.00021835,2]
[381835031,1756363857771,-648.71,0.00021835,2]
[381835032,1756363857781,-574.54,0.00021835,2]
[381835033,1756363857791,-400.0,0.00021835,2]
[381835034,1756363857801,-400.0,0.00021835,2]
[381835035,1756363857810,-400.0,0.00021835,2]
[381835036,1756363857820,-407.78,0.00021835,2]
[381835037,1756363857830,-1355.55,0.00021835,2]
[381835038,1756363857840,-725.7,0.00021835,2]
[381835039,1756363857850,-400.0,0.00021835,2]
[381835040,1756363857860,-400.0,0.00021835,2]
[381835041,1756363857870,-400.0,0.00021835,2]
[381835042,1756363857880,-400.0,0.00021835,2]
[381835043,1756363857891,-549.03,0.00021835,2]
[381835044,1756363857900,-400.0,0.00021835,2]
[381835045,1756363857910,-400.0,0.00021835,2]
[381835046,1756363857921,-455.82,0.00021835,2]
[381835047,1756363857931,-210.0,0.0002187,2]
[381835048,1756363857942,-213.0,0.0002187,2]
[381835049,1756363857952,-204.0,0.0002187,2]
[381835050,1756363857962,-1700.0,0.000219,7]
[381835051,1756363857976,-1500.0,0.000219,7]
[381835052,1756363857987,-700.0,0.00021904,2]
[381835053,1756363857997,-1900.0,0.00021904,2]
[381835054,1756363858008,-200.0,0.0002191,7]
[381835055,1756363858019,-5000.0,0.00021918,2]
[381835056,1756363858030,-233.273699,0.00021918,2]
[381835057,1756363858040,-151.0,0.00021918,2]
[381835058,1756363858050,-151.0,0.00021918,2]
[381835059,1756363858060,-151.0,0.00021918,2]
[381835060,1756363858071,-151.0,0.00021918,2]
[381835061,1756363858081,-151.0,0.00021918,2]
[381835062,1756363858091,-197.14058,0.00021918,2]
[381835063,1756363858101,-159.0,0.00021918,2]
[381835064,1756363858111,-158.65760038,0.00021918,2]
[381835065,1756363858121,-154.0,0.00021918,2]
[381835066,1756363858131,-181.57877327,0.00021918,2]
[381835067,1756363858142,-154.0,0.00021918,2]
[381835068,1756363858152,-154.0,0.00021918,2]
[381835069,1756363858162,-154.0,0.00021918,2]
[381835070,1756363858172,-154.0,0.00021918,2]
[381835071,1756363858181,-168.0,0.00021939,2]
[381835072,1756363858191,-150.0,0.00021973,2]
[381835073,1756363858201,-2833.45978519,0.00021978,5]
[381835074,1756363858211,-500.0,0.00022,2]
[381835075,1756363858221,-50000.0,0.00022,2]
[381835076,1756363858231,-474.0,0.00022,2]
[381835077,1756363858240,-160.0,0.00022,2]
[381835078,1756363858250,-449.19,0.00022,7]
[381835079,1756363858260,-8172.31,0.00022,7]
[381835080,1756363858269,-65344.2242633,0.00022,4]
[381835081,1756363858279,-3151.8955938,0.00022,2]
[381835082,1756363858289,-127412.66,0.00022,7]
[381835083,1756363858298,-13073.55,0.00022,2]
[381835084,1756363858309,-2357.1506,0.00022,2]
[381835085,1756363858319,-4000.0,0.00022,4]
[381835086,1756363858329,-400.0,0.00022009,2]
[381835087,1756363858339,-527.0,0.0002204,3]
[381835088,1756363858349,-782.21,0.00022078,2]
[381835089,1756363858358,-920.98,0.000221,2]
[381835090,1756363858368,-400.0,0.00022107,2]
[381835091,1756363858378,-1224.72,0.00022109,2]
[381835092,1756363858388,-648.71,0.00022109,2]
[381835093,1756363858398,-574.54,0.00022109,2]
[381835094,1756363858409,-400.0,0.00022109,2]
[381835095,1756363858418,-400.0,0.00022109,2]
[381835096,1756363858428,-400.0,0.00022109,2]
[381835097,1756363858438,-407.78,0.00022109,2]
[381835098,1756363858448,-1355.55,0.00022109,2]
[381835099,1756363858458,-725.7,0.00022109,2]
[381835100,1756363858467,-400.0,0.00022109,2]
[381835101,1756363858477,-400.0,0.00022109,2]
[381835102,1756363858487,-400.0,0.00022109,2]
[381835103,1756363858497,-400.0,0.00022109,2]
[381835104,1756363858507,-549.03,0.00022109,2]
[381835105,1756363858517,-394.41579362,0.00022109,2]
[381835106,1756363858527,-400.0,0.00022109,2]
[381835107,1756363858537,-455.82,0.00022109,2]
[381835108,1756363858547,-1484.42657331,0.00022144,2]
[381835109,1756363858556,-600.0,0.00022164,2]
[381835110,1756363858567,-152.0,0.00022187,3]
[381835111,1756363858577,-400.0,0.00022283,2]
[381835112,1756363858587,-312.76700458,0.00022288,2]
[381835113,1756363858597,-2000.0,0.000223,2]
[381835114,1756363858607,-527.0,0.00022314,3]
[381835115,1756363858617,-168.0,0.00022317,2]
[381835116,1756363858630,-168.0,0.00022338,2]
[381835117,1756363858640,-3949.4220505,0.00022338,2]
[381835118,1756363858651,-859.6715193,0.00022343,2]
[381835119,1756363858661,-782.21,0.00022352,2]
[381835120,1756363858671,-314.19208298,0.00022381,2]
[381835121,1756363858681,-1224.72,0.00022383,2]
[381835122,1756363858691,-648.71,0.00022383,2]
[381835123,1756363858701,-574.54,0.00022383,2]
[381835124,1756363858711,-490.36,0.00022383,2]
[381835125,1756363858720,-400.0,0.00022383,2]
[381835126,1756363858730,-400.0,0.00022383,2]
[381835127,1756363858740,-407.78,0.00022383,2]
[381835128,1756363858750,-725.7,0.00022383,2]
[381835129,1756363858759,-400.0,0.00022383,2]
[381835130,1756363858769,-400.0,0.00022383,2]
[381835131,1756363858779,-400.0,0.00022383,2]
[381835132,1756363858788,-286.21979277,0.00022383,2]
[381835133,1756363858798,-549.03,0.00022383,2]
[381835134,1756363858808,-400.0,0.00022383,2]
[381835135,1756363858818,-455.82,0.00022383,2]
[381835136,1756363858829,-409.0,0.000224,2]
[381835137,1756363858839,-3035.74,0.00022465,2]
[381835138,1756363858849,-16167.3559205,0.00022495,2]
[381835139,1756363858859,-200.0,0.0002251,7]
[381835140,1756363858869,-250.0,0.00022521,2]
[381835141,1756363858879,-400.0,0.00022557,2]
[381835142,1756363858890,-527.0,0.00022588,3]
[381835143,1756363858900,-782.21,0.00022626,2]
[381835144,1756363858911,-1224.72,0.00022657,2]
[381835145,1756363858921,-648.71,0.00022657,2]
[381835146,1756363858932,-574.54,0.00022657,2]
[381835147,1756363858941,-400.0,0.00022657,2]
[381835148,1756363858951,-400.0,0.00022657,2]
[381835149,1756363859372,-407.78,0.00022657,2]
[381835150,1756363859394,-725.7,0.00022657,2]
[381835151,1756363859407,-400.0,0.00022657,2]
[381835152,1756363859416,-400.0,0.00022657,2]
[381835153,1756363859426,-400.0,0.00022657,2]
[381835154,1756363859435,-549.03,0.00022657,2]
[381835155,1756363859444,-400.0,0.00022657,2]
[381835156,1756363859454,-455.82,0.00022657,2]
[381835157,1756363859463,-400.0,0.00022674,2]
[381835158,1756363859472,-1078.8,0.00022698,2]
[381835159,1756363859481,-600.0,0.00022712,2]
[381835160,1756363859490,-277.35679052,0.00022745,2]
[381835161,1756363859500,-500.0,0.00022767,2]
[381835162,1756363859509,-16342.7505801,0.000228,4]
[381835163,1756363859518,-96782.91864199,0.000228,7]
[381835164,1756363859528,-200.0,0.0002281,7]
[381835165,1756363859537,-8013.50634757,0.00022823,5]
[381835166,1756363859545,-400.0,0.00022831,2]
[381835167,1756363859555,-527.0,0.00022862,3]
[381835168,1756363859564,-350.0,0.00022874,10]
[381835169,1756363859573,-2000.0,0.00022885,2]
[381835170,1756363859582,-1044.9345,0.00022885,2]
[381835171,1756363859591,-2000.0,0.00022885,2]
[381835172,1756363859601,-2000.0,0.00022885,2]
[381835173,1756363859610,-2000.0,0.00022885,2]
[381835174,1756363859619,-881.2351746,0.00022899,2]
[381835175,1756363859628,-782.21,0.000229,2]
[381835176,1756363859638,-200.0,0.0002291,7]
[381835177,1756363859648,-7394.75883624,0.00022924,2]
[381835178,1756363859657,-1224.72,0.00022931,2]
[381835179,1756363859666,-648.71,0.00022931,2]
[381835180,1756363859675,-574.54,0.00022931,2]
[381835181,1756363859684,-400.0,0.00022931,2]
[381835182,1756363859694,-400.0,0.00022931,2]
[381835183,1756363859703,-407.78,0.00022931,2]
[381835184,1756363859713,-725.7,0.00022931,2]
[381835185,1756363859722,-400.0,0.00022931,2]
[381835186,1756363859733,-400.0,0.00022931,2]
[381835187,1756363859742,-400.0,0.00022931,2]
[381835188,1756363859751,-549.03,0.00022931,2]
[381835189,1756363859761,-400.0,0.00022931,2]
[381835190,1756363859770,-455.82,0.00022931,2]
[381835191,1756363859780,-300.0,0.0002297,2]
[381835192,1756363859790,-300.0,0.0002297,2]
[381835193,1756363859802,-300.0,0.0002297,2]
[381835194,1756363859812,-300.0,0.0002297,2]
[381835195,1756363859822,-400.86252329,0.0002297,2]
[381835196,1756363859832,-700.0,0.0002297,2]
[381835197,1756363859842,-700.0,0.0002297,2]
[381835198,1756363859852,-700.0,0.0002297,2]
[381835199,1756363859861,-700.0,0.0002297,2]
[381835200,1756363859872,-700.0,0.0002297,2]
[381835201,1756363859882,-1209.6178129,0.00022984,2]
[381835202,1756363859892,-1484.42657331,0.00022993,2]
[381835203,1756363859902,-700.0,0.00023,2]
[381835204,1756363859912,-1900.0,0.00023,2]
[381835205,1756363859921,-151.0,0.00023,2]
[381835206,1756363859931,-151.0,0.00023,10]
[381835207,1756363859940,-151.0,0.00023,15]
[381835208,1756363859950,-449.19,0.00023,7]
[381835209,1756363859959,-204.79425794,0.00023,14]
[381835210,1756363859971,-6000.0,0.00023,3]
[381835211,1756363859982,-2850.0,0.00023,6]
[381835212,1756363859991,-127412.66,0.00023,7]
[381835213,1756363860002,-160.0,0.00023,3]
[381835214,1756363860012,-361.10247878,0.0002302,2]
[381835215,1756363860021,-350.0,0.00023068,2]
[381835216,1756363860031,-200.0,0.000231,7]
[381835217,1756363860042,-8172.31,0.000231,7]
[381835218,1756363860052,-13073.55,0.000231,2]
[381835219,1756363860062,-400.0,0.00023105,2]
[381835220,1756363860072,-527.0,0.00023135,3]
[381835221,1756363860082,-859.6715193,0.00023164,2]
[381835222,1756363860092,-782.21,0.00023174,2]
[381835223,1756363860101,-1224.72,0.00023205,2]
[381835224,1756363860110,-648.71,0.00023205,2]
[381835225,1756363860120,-574.54,0.00023205,2]
[381835226,1756363860131,-400.0,0.00023205,2]
[381835227,1756363860141,-307.42138609,0.00023205,2]
[381835228,1756363860152,-407.78,0.00023205,2]
[381835229,1756363860162,-725.7,0.00023205,2]
[381835230,1756363860171,-156.93923436,0.00023205,2]
[381835231,1756363860180,-301.71727866,0.00023205,2]
[381835232,1756363860190,-400.0,0.00023205,2]
[381835233,1756363860200,-549.03,0.00023205,2]
[381835234,1756363860210,-400.0,0.00023205,2]
[381835235,1756363860219,-455.82,0.00023205,2]
[381835236,1756363860229,-600.0,0.0002326,2]
[381835237,1756363860239,-162.97116817,0.00023376,2]
[381835238,1756363860248,-400.0,0.00023379,2]
[381835239,1756363860257,-527.0,0.00023409,3]
[381835240,1756363860267,-920.98,0.0002342,2]
[381835241,1756363860276,-782.21,0.00023448,2]
[381835242,1756363860286,-5800.0,0.00023458,2]
[381835243,1756363860295,-5800.0,0.00023466,2]
[381835244,1756363860304,-5800.0,0.00023475,2]
[381835245,1756363860314,-1224.72,0.00023479,2]
[381835246,1756363860323,-648.71,0.00023479,2]
[381835247,1756363860332,-574.54,0.00023479,2]
[381835248,1756363860342,-344.00800295,0.00023479,2]
[381835249,1756363860351,-407.78,0.00023479,2]
[381835250,1756363860361,-725.7,0.00023479,2]
[381835251,1756363860370,-400.0,0.00023479,2]
[381835252,1756363860380,-549.03,0.00023479,2]
[381835253,1756363860389,-400.0,0.00023479,2]
[381835254,1756363860398,-5800.0,0.00023483,2]
[381835255,1756363860407,-5800.0,0.00023491,2]
[381835256,1756363860416,-5800.0,0.000235,2]
[381835257,1756363860426,-200.0,0.0002351,7]
[381835258,1756363860436,-347.37,0.0002352,2]
[381835259,1756363860445,-462.28,0.0002352,2]
[381835260,1756363860455,-399.0,0.0002359,2]
[381835261,1756363860465,-450.0,0.00023616,2]
[381835262,1756363860475,-400.0,0.00023653,2]
[381835263,1756363860484,-527.0,0.00023683,3]
[381835264,1756363860494,-154568.60434745,0.00023687,2]
[381835265,1756363860503,-2520.03995233,0.000237,2]
[381835266,1756363860512,-782.21,0.00023722,2]
[381835267,1756363860522,-225.6,0.00023726,2]
[381835268,1756363860531,-152.0,0.0002374,4]
[381835269,1756363860540,-3776.33721564,0.00023748,3]
[381835270,1756363860550,-1224.72,0.00023753,2]
[381835271,1756363860559,-648.71,0.00023753,2]
[381835272,1756363860568,-574.54,0.00023753,2]
[381835273,1756363860577,-407.78,0.00023753,2]
[381835274,1756363860587,-725.7,0.00023753,2]
[381835275,1756363860596,-520.40419126,0.00023753,2]
[381835276,1756363860606,-549.03,0.00023753,2]
[381835277,1756363860615,-400.0,0.00023753,2]
[381835278,1756363860624,-600.0,0.00023808,2]
[381835279,1756363860633,-50230.62751575,0.0002381,2]
[381835280,1756363860645,-8973.49940449,0.00023818,2]
[381835281,1756363860654,-5000.0,0.00023818,2]
[381835282,1756363860664,-5000.0,0.00023818,2]
[381835283,1756363860673,-1484.42657331,0.00023842,2]
[381835284,1756363860682,-2200.0,0.000239,8]
[381835285,1756363860691,-1800.0,0.000239,8]
[381835286,1756363860700,-400.0,0.00023927,2]
[381835287,1756363860710,-527.0,0.00023957,3]
[381835288,1756363860719,-150.0,0.00023973,2]
[381835289,1756363860728,-150.0,0.00023976,2]
[381835290,1756363860737,-803.57199079,0.00023978,2]
[381835291,1756363860747,-1024.16038042,0.00023979,2]
[381835292,1756363860756,-34545.68364087,0.0002398,2]
[381835293,1756363860765,-1244.74877004,0.00023981,2]
[381835294,1756363860775,-1465.33715967,0.00023982,2]
[381835295,1756363860784,-859.6715193,0.00023984,2]
[381835296,1756363860794,-1685.9255493,0.00023984,2]
[381835297,1756363860803,-1162.8538853,0.00023984,2]
[381835298,1756363860812,-1906.51393893,0.00023985,2]
[381835299,1756363860821,-2127.10232856,0.00023987,2]
[381835300,1756363860830,-2347.69071818,0.00023988,2]
[381835301,1756363860840,-2568.27910781,0.0002399,2]
[381835302,1756363860849,-782.21,0.00023996,2]
[381835303,1756363860859,-1000.0,0.00024,2]
[381835305,1756363860868,-844.78141368,0.00024,7]
[381835306,1756363860878,-1000.0,0.00024,2]
[381835307,1756363860889,-421732.39725866,0.00024,7]
[381835308,1756363860898,-844.93374113,0.00024,7]
[381835309,1756363860908,-2467.82839895,0.00024,2]
[381835311,1756363860917,-127412.66,0.00024,7]
[381835312,1756363860927,-2357.15061,0.00024,2]
[381835313,1756363860937,-160.0,0.00024,7]
[381835314,1756363860947,-4000.0,0.00024,4]
[381835315,1756363860956,-1000.0,0.00024012,2]
[381835316,1756363860965,-150.0,0.00024016,4]
[381835317,1756363860979,-1224.72,0.00024027,2]
[381835318,1756363860989,-648.71,0.00024027,2]
[381835319,1756363860999,-574.54,0.00024027,2]
[381835320,1756363861008,-407.78,0.00024027,2]
[381835321,1756363861019,-725.7,0.00024027,2]
[381835322,1756363861029,-549.03,0.00024027,2]
[381835323,1756363861038,-400.0,0.00024027,2]
[381835324,1756363861049,-700.0,0.00024096,2]
[381835325,1756363861058,-449.19,0.000241,7]
[381835326,1756363861068,-8172.31,0.000241,7]
[381835327,1756363861077,-2195.62,0.00024109,2]
[381835328,1756363861086,-287.61899177,0.00024114,2]
[381835329,1756363861096,-550.0,0.00024164,2]
[381835330,1756363861105,-13073.55,0.000242,2]
[381835331,1756363861115,-335.77989995,0.00024201,2]
[381835332,1756363861124,-546.53677934,0.00024231,3]
[381835333,1756363861134,-782.21,0.0002427,2]
[381835334,1756363861144,-1224.76164026,0.00024301,2]
[381835335,1756363861154,-648.92222514,0.00024301,2]
[381835336,1756363861163,-574.73883627,0.00024301,2]
[381835337,1756363861172,-407.80569636,0.00024301,2]
[381835338,1756363861182,-725.75912837,0.00024301,2]
[381835339,1756363861191,-549.04878049,0.00024301,2]
[381835340,1756363861201,-223.35791931,0.00024301,2]
[381835341,1756363861210,-408.79,0.00024344,2]
[381835342,1756363861219,-408.79,0.00024344,2]
[381835343,1756363861229,-408.79,0.00024344,2]
[381835344,1756363861238,-600.0,0.00024356,2]
[381835345,1756363861247,-183.33333333,0.00024409,2]
[381835346,1756363861257,-312.76700458,0.00024483,2]
[381835347,1756363861266,-305.82,0.000245,2]
[381835348,1756363861275,-405.05090634,0.000245,3]
[381835349,1756363861285,-200.0,0.0002451,7]
[381835350,1756363861294,-250.0,0.00024521,2]
[381835351,1756363861303,-782.21,0.00024544,2]
[381835352,1756363861312,-160.0,0.0002455,2]
[381835353,1756363861321,-317.62,0.00024657,2]
[381835354,1756363861331,-317.62,0.00024657,2]
[381835355,1756363861340,-317.62,0.00024657,2]
[381835356,1756363861350,-317.62,0.00024657,2]
[381835357,1756363861359,-317.62,0.00024657,2]
[381835358,1756363861368,-317.62,0.00024657,2]
[381835359,1756363861377,-317.62,0.00024657,2]
[381835360,1756363861387,-317.62,0.00024657,2]
[381835361,1756363861396,-317.62,0.00024657,2]
[381835362,1756363861406,-317.62,0.00024657,2]
[381835363,1756363861415,-317.62,0.00024657,2]
[381835364,1756363861424,-317.62,0.00024657,2]
[381835365,1756363861434,-317.62,0.00024657,2]
[381835366,1756363861443,-317.62,0.00024657,2]
[381835367,1756363861452,-317.62,0.00024657,2]
[381835368,1756363861462,-317.62,0.00024657,2]
[381835369,1756363861471,-317.62,0.00024657,2]
[381835370,1756363861480,-317.62,0.00024657,2]
[381835371,1756363861489,-317.62,0.00024657,2]
[381835372,1756363861498,-317.62,0.00024657,2]
[381835373,1756363861508,-317.62,0.00024657,2]
[381835374,1756363861517,-317.62,0.00024657,2]
[381835375,1756363861527,-317.62,0.00024657,2]
[381835376,1756363861536,-317.84319964,0.00024657,2]
[381835377,1756363861587,-3035.74,0.00024657,4]
[381835378,1756363861596,-153.0,0.00024658,2]
[381835379,1756363861605,-257.85927097,0.00024658,2]
[381835380,1756363861614,-1000.0,0.00024658,2]
[381835381,1756363861623,-500.0,0.00024658,3]
[381835382,1756363861632,-1484.42657331,0.00024691,2]
[381835383,1756363861643,-281.03250598,0.000247,2]
[381835384,1756363861652,-16185.40648439,0.000247,2]
[381835385,1756363861662,-1063.2691507,0.000247,2]
[381835386,1756363861671,-650.0,0.00024712,2]
[381835387,1756363861680,-157.80765905,0.00024718,4]
[381835388,1756363861689,-361.10247878,0.00024727,2]
[381835389,1756363861698,-350.0,0.00024748,15]
[381835390,1756363861707,-390.0,0.0002477,2]
[381835391,1756363861716,-1116.0899576,0.00024783,2]
[381835392,1756363861725,-844.78141368,0.000248,7]
[381835393,1756363861735,-224.18,0.000248,30]
[381835394,1756363861743,-206.69523571,0.000248,2]
[381835395,1756363861753,-604240.515788,0.000248,3]
[381835396,1756363861762,-733.24272343,0.000248,4]
[381835397,1756363861771,-733.24272343,0.000248,4]
[381835398,1756363861779,-733.24272343,0.000248,4]
[381835399,1756363861788,-733.24272343,0.000248,4]
[381835400,1756363861797,-733.24272343,0.000248,4]
[381835401,1756363861806,-733.24272343,0.000248,4]
[381835402,1756363861815,-733.24272343,0.000248,4]
[381835403,1756363861824,-733.24272343,0.000248,4]
[381835404,1756363861834,-733.24272343,0.000248,4]
[381835405,1756363861842,-733.24272343,0.000248,4]
[381835406,1756363861851,-733.24272343,0.000248,4]
[381835407,1756363861860,-733.24272343,0.000248,4]
[381835408,1756363861869,-733.24272343,0.000248,4]
[381835409,1756363861878,-733.24272343,0.000248,4]
[381835410,1756363861888,-733.24272343,0.000248,4]
[381835411,1756363861897,-733.24272343,0.000248,4]
[381835412,1756363861906,-733.24272343,0.000248,4]
[381835413,1756363861915,-733.24272343,0.000248,4]
[381835414,1756363861924,-733.24272343,0.000248,4]
[381835415,1756363861933,-733.24,0.000248,4]
[381835416,1756363861942,-195.69356946,0.000248,4]
[381835417,1756363861951,-195.69356946,0.000248,4]
[381835418,1756363861960,-195.69356946,0.000248,4]
[381835419,1756363861971,-195.69356946,0.000248,4]
[381835420,1756363861981,-195.69356946,0.000248,4]
[381835421,1756363861990,-195.69356946,0.000248,4]